[Event "European Womens-ch 2025"]
[Site "Rhodes"]
[Date "2025.03.31"]
[Round "1.24"]
[White "Vidic, Teja"]
[Black "Kiolbasa, Oliwia"]
[Result "1/2-1/2"]
[Annotator "RC"]
[ECO "C47"]
[WhiteElo "2100"]
[BlackElo "2360"]
[PlyCount "180"]
[EventDate "2025.03.29"]
[EventType "swiss"]
[EventCountry "GRE"]
[SourceTitle "playchess.com"]
[Source "ChessBase"]
[SourceQuality "1"]
[TimeControl "40/5400+30:1800+30"]

1. e4 {[%emt 0:00:03]} e5 {[%emt 0:00:09]} 2. Nf3 {[%emt 0:00:05]} Nc6 {[%emt 0:00:08]} 3. Nc3 {[%emt 0:00:05]} Nf6 {[%emt 0:00:43]} 4. d4 {[%emt 0:00:05]} exd4 {[%emt 0:00:21]} 5. Nxd4 {[%emt 0:00:05]} Bc5 {[%emt 0:00:36]} 6. Be3 {[%emt 0:02:51]} Bb4 {[%emt 0:00:39]} 7. Nxc6 {[%emt 0:04:20]} bxc6 {[%emt 0:00:40]} 8. Bd3 {[%emt 0:00:05]} d6 {[%emt 0:00:21]} 9. Bg5 {[%emt 0:03:48]} h6 {[%emt 0:00:52]} 10. Bh4 {[%emt 0:00:12]} g5 {[%emt 0:01:19]} 11. Bg3 {[%emt 0:00:07]} Be6 {[%emt 0:00:14]} 12. Qd2 {[%emt 0:13:42]} Nh5 {[%emt 0:12:31]} 13. a3 {[%emt 0:07:12]} Ba5 {[%emt 0:00:16]} 14. b4 {[%emt 0:01:12]} Bb6 {[%emt 0:00:13]} 15. Ne2 {[%emt 0:00:18]} Qf6 {[%emt 0:07:40]} 16. O-O {[%emt 0:09:39]} Nxg3 {[%emt 0:14:30]} 17. Nxg3 {[%emt 0:00:07]} h5 {[%emt 0:00:07]} 18. Nf5 {[%emt 0:17:57]} Bxf5 {[%emt 0:00:55]} 19. exf5 {[%emt 0:00:06]} Bd4 {[%emt 0:00:07]} 20. Rae1+ {[%emt 0:01:27]} Kf8 {[%emt 0:00:25]} 21. Rb1 {[%emt 0:03:42]} Kg7 {[%emt 0:06:49]} 22. Rb3 {[%emt 0:02:40]} Rae8 {[%emt 0:04:52]} 23. Re1 {[%emt 0:01:18]} Be5 {[%emt 0:02:28]} 24. c4 {[%emt 0:09:26]} Re7 {[%emt 0:09:50]} 25. Qd1 {[%emt 0:05:16]} Rhe8 {[%emt 0:04:33]} 26. g3 {[%emt 0:01:31]} g4 {[%emt 0:06:08]} 27. Kg2 {[%emt 0:01:26]} Bc3 {[%emt 0:09:16]} 28. Rf1 {[%emt 0:01:03]} d5 {[%emt 0:04:16]} 29. c5 {[%emt 0:02:47]} d4 {[%emt 0:05:38]} 30. Qc1 {[%emt 0:00:34]} Kh8 {[%emt 0:04:55]} 31. Qf4 {[%emt 0:00:19]} Rg8 {[%emt 0:00:10]} 32. Rbb1 {[%emt 0:03:05]} h4 {[%emt 0:01:22]} 33. gxh4 {[%emt 0:03:06]} Qxh4 {[%emt 0:00:05]} 34. Qg3 {[%emt 0:00:07]} Qh6 {[%emt 0:00:43]} 35. Rh1 {[%emt 0:00:28]} Bd2 {[%emt 0:03:30]} 36. h3 {[%emt 0:01:49]} gxh3+ {[%emt 0:00:30]} 37. Rxh3 {[%emt 0:00:08]} Rxg3+ {[%emt 0:00:26]} 38. Kxg3 {[%emt 0:00:24]} Qxh3+ {[%emt 0:00:35]} 39. Kxh3 {[%emt 0:00:04]} Re1 {[%emt 0:00:33]} 40. Rxe1 {[%emt 0:00:00]} Bxe1 {[%emt 0:00:00]} 41. f3 {[%emt 0:11:00]} Bd2 {[%emt 0:02:47]} 42. b5 {[%emt 0:06:57]} cxb5 {[%emt 0:01:50]} 43. Bxb5 {[%emt 0:00:04]} Kg7 {[%emt 0:00:03]} 44. Kg4 {[%emt 0:03:57]} Kf6 {[%emt 0:00:46]} 45. f4 {[%emt 0:00:39]} Bc1 {[%emt 0:00:46]} 46. a4 {[%emt 0:00:05]} Ba3 {[%emt 0:00:34]} 47. c6 {[%emt 0:00:06]} Ke7 {[%emt 0:00:41]} 48. Kf3 {[%emt 0:00:45]} Kd6 {[%emt 0:02:00]} 49. Ke4 {[%emt 0:00:14]} Bb2 {[%emt 0:00:04]} 50. Kd3 {[%emt 0:01:59]} f6 {[%emt 0:00:49]} 51. Kc4 {[%emt 0:05:34]} Bc3 {[%emt 0:00:23]} 52. Ba6 {[%emt 0:06:16]} Kxc6 {[%emt 0:00:23]} 53. Bc8 {[%emt 0:00:04]} Kb6 {[%emt 0:05:04]} 54. Be6 {[%emt 0:01:28]} c6 {[%emt 0:00:06]} 55. Bd7 {[%emt 0:00:06]} Bb2 {[%emt 0:05:55]} 56. Be8 {[%emt 0:00:43]} c5 {[%emt 0:01:39]} 57. Bh5 {[%emt 0:00:18]} Bc1 {[%emt 0:00:40]} 58. Bd1 {[%emt 0:00:35]} Bxf4 {[%emt 0:00:20]} 59. Bc2 {[%emt 0:00:04]} Bd2 {[%emt 0:01:16]} 60. Kd3 {[%emt 0:00:15]} Bb4 {[%emt 0:01:07]} 61. Kc4 {[%emt 0:00:04]} Kc6 {[%emt 0:00:14]} 62. Be4+ {[%emt 0:00:51]} Kd6 {[%emt 0:00:25]} 63. Bd3 {[%emt 0:00:25]} Ke5 {[%emt 0:00:22]} 64. Bc2 {[%emt 0:00:16]} Kf4 {[%emt 0:00:47]} 65. Bd3 {[%emt 0:00:03]} Ke3 {[%emt 0:00:06]} 66. Bc2 {[%emt 0:00:04]} Be1 {[%emt 0:02:17]} 67. Bb1 {[%emt 0:00:32]} Bg3 {[%emt 0:00:54]} 68. Bc2 {[%emt 0:00:32]} Bd6 {[%emt 0:00:07]} 69. Bb1 {[%emt 0:00:06]} Bf8 {[%emt 0:00:10]} 70. Bc2 {[%emt 0:00:02]} Kd2 {[%emt 0:00:26]} 71. Be4 {[%emt 0:00:49]} Kc1 {[%emt 0:00:06]} 72. Kb3 {[%emt 0:00:44]} Be7 {[%emt 0:00:37]} 73. Bd3 {[%emt 0:00:05]} Kd2 {[%emt 0:00:35]} 74. Kc4 {[%emt 0:00:05]} Ke3 {[%emt 0:00:22]} 75. Bc2 {[%emt 0:00:07]} Kf4 {[%emt 0:00:03]} 76. Bd3 {[%emt 0:00:07]} Ke5 {[%emt 0:00:05]} 77. Bc2 {[%emt 0:00:04]} Kd6 {[%emt 0:00:03]} 78. Be4 {[%emt 0:00:33]} Bf8 {[%emt 0:00:35]} 79. Bd3 {[%emt 0:01:18]} Kc6 {[%emt 0:04:22]} 80. Be2 {[%emt 0:00:46]} Kb6 {[%emt 0:00:17]} 81. Bd3 {[%emt 0:00:05]} Ka5 {[%emt 0:00:05]} 82. Kb3 {[%emt 0:00:18]} Bh6 {[%emt 0:01:01]} 83. Bc4 {[%emt 0:00:35]} Be3 {[%emt 0:00:37]} 84. Bd3 {[%emt 0:00:04]} c4+ {[%emt 0:00:30]} 85. Bxc4 {[%emt 0:00:05]} Kb6 {[%emt 0:00:03]} 86. Kc2 {[%emt 0:01:00]} Kc5 {[%emt 0:00:22]} 87. Kd3 {[%emt 0:00:04]} Kb4 {[%emt 0:00:17]} 88. Bb5 {[%emt 0:00:06]} Kc5 {[%emt 0:00:09]} 89. Be8 {[%emt 0:00:06]} Kb4 {[%emt 0:00:07]} 90. Bb5 {[%emt 0:00:05]} Kc5 {[%emt 0:00:04]} 1/2-1/2

[Event "European Womens-ch 2025"]
[Site "Rhodes"]
[Date "2025.03.31"]
[Round "1.25"]
[White "Guichard, Pauline"]
[Black "Ter-Avetisjana, Agnesa Stepania"]
[Result "1/2-1/2"]
[Annotator "RC"]
[ECO "D11"]
[WhiteElo "2355"]
[BlackElo "2100"]
[PlyCount "72"]
[EventDate "2025.03.29"]
[EventType "swiss"]
[EventCountry "GRE"]
[SourceTitle "playchess.com"]
[Source "ChessBase"]
[SourceQuality "1"]
[TimeControl "40/5400+30:1800+30"]

1. d4 {[%emt 0:00:03]} d5 {[%emt 0:00:14]} 2. c4 {[%emt 0:00:10]} c6 {[%emt 0:00:06]} 3. Nf3 {[%emt 0:00:09]} Nf6 {[%emt 0:00:06]} 4. Nbd2 {[%emt 0:00:09]} Bf5 {[%emt 0:00:50]} 5. Nh4 {[%emt 0:00:26]} Be4 {[%emt 0:09:08]} 6. Qb3 {[%emt 0:00:27]} Qb6 {[%emt 0:14:20]} 7. f3 {[%emt 0:00:31]} Qxb3 {[%emt 0:04:16]} 8. Nxb3 {[%emt 0:00:27]} Bg6 {[%emt 0:00:44]} 9. cxd5 {[%emt 0:10:55]} Nxd5 {[%emt 0:07:08]} 10. Nxg6 {[%emt 0:08:27]} hxg6 {[%emt 0:00:16]} 11. e4 {[%emt 0:03:04]} Nb4 {[%emt 0:04:44]} 12. Kf2 {[%emt 0:09:12]} a5 {[%emt 0:14:49]} 13. Bd2 {[%emt 0:08:19]} e5 {[%emt 0:06:01]} 14. dxe5 {[%emt 0:03:40]} a4 {[%emt 0:01:56]} 15. Nd4 {[%emt 0:06:56]} Bc5 {[%emt 0:07:09]} 16. Be3 {[%emt 0:01:09]} a3 {[%emt 0:05:01]} 17. Rb1 {[%emt 0:06:10]} Nd7 {[%emt 0:08:24]} 18. f4 {[%emt 0:01:21]} g5 {[%emt 0:04:07]} 19. g3 {[%emt 0:04:23]} gxf4 {[%emt 0:01:42]} 20. gxf4 {[%emt 0:00:05]} g5 {[%emt 0:00:28]} 21. fxg5 {[%emt 0:07:56]} Nxe5 {[%emt 0:00:42]} 22. Kg3 {[%emt 0:00:40]} Nxa2 {[%emt 0:08:45]} 23. Nf5 {[%emt 0:09:20]} Bxe3 {[%emt 0:00:04]} 24. Nxe3 {[%emt 0:00:02]} b5 {[%emt 0:00:19]} 25. Ng4 {[%emt 0:01:56]} Nxg4 {[%emt 0:00:47]} 26. Kxg4 {[%emt 0:00:05]} Ra4 {[%emt 0:00:32]} 27. Bg2 {[%emt 0:03:54]} O-O {[%emt 0:00:50]} 28. Kf5 {[%emt 0:01:27]} Kg7 {[%emt 0:00:24]} 29. e5 {[%emt 0:00:46]} Rd8 {[%emt 0:00:36]} 30. Bxc6 {[%emt 0:02:13]} Rdd4 {[%emt 0:00:01]} 31. Rhf1 {[%emt 0:00:04]} Rd2 {[%emt 0:00:48]} 32. Bxb5 {[%emt 0:11:09]} Ra5 {[%emt 0:00:27]} 33. bxa3 {[%emt 0:00:50]} Nc3 {[%emt 0:00:06]} 34. a4 {[%emt 0:00:05]} Nxb1 {[%emt 0:01:06]} 35. Rxb1 {[%emt 0:00:02]} Rxh2 {[%emt 0:00:07]} 36. Rc1 {[%emt 0:01:02]} Rf2+ {[%emt 0:00:35]} 1/2-1/2

[Event "European Womens-ch 2025"]
[Site "Rhodes"]
[Date "2025.03.31"]
[Round "1.26"]
[White "Hapala, Elisabeth"]
[Black "Gaponenko, Inna"]
[Result "1/2-1/2"]
[Annotator "RC"]
[ECO "B56"]
[WhiteElo "2092"]
[BlackElo "2349"]
[PlyCount "55"]
[EventDate "2025.03.29"]
[EventType "swiss"]
[EventCountry "GRE"]
[SourceTitle "playchess.com"]
[Source "ChessBase"]
[SourceQuality "1"]
[TimeControl "40/5400+30:1800+30"]

1. e4 {[%emt 0:00:02]} c5 {[%emt 0:00:05]} 2. Nf3 {[%emt 0:00:03]} Nc6 {[%emt 0:00:05]} 3. d4 {[%emt 0:00:04]} cxd4 {[%emt 0:00:05]} 4. Nxd4 {[%emt 0:00:03]} Nf6 {[%emt 0:00:06]} 5. Nc3 {[%emt 0:00:04]} d6 {[%emt 0:00:23]} 6. f3 {[%emt 0:00:19]} e5 {[%emt 0:02:12]} 7. Nb3 {[%emt 0:00:06]} Be7 {[%emt 0:00:09]} 8. Be3 {[%emt 0:00:11]} O-O {[%emt 0:04:57]} 9. Qd2 {[%emt 0:00:19]} a5 {[%emt 0:00:07]} 10. Bb5 {[%emt 0:00:32]} Be6 {[%emt 0:00:09]} 11. O-O-O {[%emt 0:01:07]} Nb4 {[%emt 0:00:10]} 12. Kb1 {[%emt 0:00:33]} d5 {[%emt 0:00:32]} 13. exd5 {[%emt 0:00:14]} Nbxd5 {[%emt 0:00:28]} 14. Nxd5 {[%emt 0:00:21]} Nxd5 {[%emt 0:00:40]} 15. Bc4 {[%emt 0:00:25]} Nxe3 {[%emt 0:00:57]} 16. Qxe3 {[%emt 0:00:08]} Qc8 {[%emt 0:00:10]} 17. Bxe6 {[%emt 0:00:15]} Qxe6 {[%emt 0:00:05]} 18. a3 {[%emt 0:22:39]} b6 {[%emt 0:30:45]} 19. Rhe1 {[%emt 0:06:05]} Rad8 {[%emt 0:16:20]} 20. Rxd8 {[%emt 0:16:21]} Rxd8 {[%emt 0:00:04]} 21. Nc1 {[%emt 0:00:11]} Bh4 {[%emt 0:35:35]} 22. g3 {[%emt 0:14:09]} Bf6 {[%emt 0:00:02]} 23. Nd3 {[%emt 0:00:11]} h6 {[%emt 0:00:01]} 24. Nf2 {[%emt 0:11:44]} Qc6 {[%emt 0:04:33]} 25. Ng4 {[%emt 0:04:34]} Qe6 {[%emt 0:00:10]} 26. Nf2 {[%emt 0:11:44]} Qc6 {[%emt 0:00:14]} 27. Ng4 {[%emt 0:00:19]} Qe6 {[%emt 0:00:10]} 28. Nf2 {[%emt 0:01:28]} 1/2-1/2

[Event "European Womens-ch 2025"]
[Site "Rhodes"]
[Date "2025.03.31"]
[Round "1.27"]
[White "Mammadova, Gulnar"]
[Black "Khachatryan, Anna"]
[Result "1/2-1/2"]
[Annotator "RC"]
[ECO "B48"]
[WhiteElo "2342"]
[BlackElo "2091"]
[PlyCount "76"]
[EventDate "2025.03.29"]
[EventType "swiss"]
[EventCountry "GRE"]
[SourceTitle "playchess.com"]
[Source "ChessBase"]
[SourceQuality "1"]
[TimeControl "40/5400+30:1800+30"]

1. e4 {[%emt 0:00:04]} c5 {[%emt 0:00:13]} 2. Nf3 {[%emt 0:00:08]} e6 {[%emt 0:00:15]} 3. d4 {[%emt 0:00:27]} cxd4 {[%emt 0:00:13]} 4. Nxd4 {[%emt 0:00:05]} Nc6 {[%emt 0:00:16]} 5. Nc3 {[%emt 0:00:11]} Qc7 {[%emt 0:00:12]} 6. Be3 {[%emt 0:00:16]} a6 {[%emt 0:00:17]} 7. Qf3 {[%emt 0:00:27]} Nf6 {[%emt 0:00:25]} 8. O-O-O {[%emt 0:00:27]} Ne5 {[%emt 0:00:32]} 9. Qg3 {[%emt 0:00:47]} b5 {[%emt 0:00:36]} 10. Bxb5 {[%emt 0:05:57]} axb5 {[%emt 0:02:13]} 11. Ndxb5 {[%emt 0:00:09]} Qb8 {[%emt 0:01:33]} 12. Bf4 {[%emt 0:00:35]} d6 {[%emt 0:00:06]} 13. Nxd6+ {[%emt 0:11:12]} Bxd6 {[%emt 0:00:22]} 14. Rxd6 {[%emt 0:00:07]} Nh5 {[%emt 0:00:44]} 15. Qg5 {[%emt 0:08:55]} Qxd6 {[%emt 0:01:12]} 16. Bxe5 {[%emt 0:00:19]} Ra5 {[%emt 0:02:31]} 17. f4 {[%emt 0:14:27]} Nxf4 {[%emt 0:00:15]} 18. Nd5 {[%emt 0:16:01]} Ne2+ {[%emt 0:00:16]} 19. Kb1 {[%emt 0:01:08]} Rxd5 {[%emt 0:00:58]} 20. exd5 {[%emt 0:00:04]} Qxd5 {[%emt 0:00:06]} 21. Qxg7 {[%emt 0:00:33]} Rf8 {[%emt 0:00:17]} 22. Qf6 {[%emt 0:03:28]} Bb7 {[%emt 0:23:58]} 23. Re1 {[%emt 0:07:43]} Rg8 {[%emt 0:18:46]} 24. Rf1 {[%emt 0:05:11]} Qd7 {[%emt 0:07:07]} 25. Bd6 {[%emt 0:10:51]} Bxg2 {[%emt 0:07:35]} 26. Rd1 {[%emt 0:00:42]} Bd5 {[%emt 0:00:45]} 27. Bb4 {[%emt 0:02:33]} Be4 {[%emt 0:13:33]} 28. Re1 {[%emt 0:02:11]} Bxc2+ {[%emt 0:05:08]} 29. Kxc2 {[%emt 0:01:54]} Qa4+ {[%emt 0:00:08]} 30. Kd2 {[%emt 0:03:17]} Qxb4+ {[%emt 0:00:45]} 31. Kxe2 {[%emt 0:00:02]} Rg2+ {[%emt 0:10:38]} 32. Kf1 {[%emt 0:00:06]} Qxb2 {[%emt 0:02:39]} 33. Qf3 {[%emt 0:05:11]} Rxh2 {[%emt 0:00:57]} 34. Rd1 {[%emt 0:00:38]} Rd2 {[%emt 0:01:19]} 35. Qc6+ {[%emt 0:00:27]} Ke7 {[%emt 0:00:34]} 36. Qc7+ {[%emt 0:00:18]} Ke8 {[%emt 0:00:11]} 37. Qc8+ {[%emt 0:00:16]} Ke7 {[%emt 0:00:02]} 38. Qc7+ {[%emt 0:00:03]} Ke8 {[%emt 0:00:21]} 1/2-1/2

[Event "European Womens-ch 2025"]
[Site "Rhodes"]
[Date "2025.03.31"]
[Round "1.28"]
[White "Szente Varga, Fruzsina"]
[Black "Sliwicka, Alicja"]
[Result "1/2-1/2"]
[Annotator "RC"]
[ECO "C45"]
[WhiteElo "2083"]
[BlackElo "2342"]
[PlyCount "213"]
[EventDate "2025.03.29"]
[EventType "swiss"]
[EventCountry "GRE"]
[SourceTitle "playchess.com"]
[Source "ChessBase"]
[SourceQuality "1"]
[TimeControl "40/5400+30:1800+30"]

1. e4 {[%emt 0:00:03]} e5 {[%emt 0:00:05]} 2. Nf3 {[%emt 0:00:04]} Nc6 {[%emt 0:00:05]} 3. d4 {[%emt 0:00:03]} exd4 {[%emt 0:00:06]} 4. Nxd4 {[%emt 0:00:03]} Nf6 {[%emt 0:00:08]} 5. Nxc6 {[%emt 0:00:07]} bxc6 {[%emt 0:00:09]} 6. e5 {[%emt 0:00:14]} Qe7 {[%emt 0:00:16]} 7. Qe2 {[%emt 0:00:05]} Nd5 {[%emt 0:00:08]} 8. h4 {[%emt 0:00:03]} a5 {[%emt 0:00:22]} 9. c4 {[%emt 0:03:14]} Ba6 {[%emt 0:00:13]} 10. Nd2 {[%emt 0:09:41]} Nb6 {[%emt 0:04:54]} 11. b3 {[%emt 0:08:02]} O-O-O {[%emt 0:05:27]} 12. Bb2 {[%emt 0:02:53]} g6 {[%emt 0:08:28]} 13. O-O-O {[%emt 0:07:22]} Bg7 {[%emt 0:00:21]} 14. f4 {[%emt 0:03:42]} Rhe8 {[%emt 0:02:55]} 15. Nf3 {[%emt 0:10:33]} d5 {[%emt 0:04:38]} 16. Qc2 {[%emt 0:06:46]} dxc4 {[%emt 0:01:17]} 17. Rxd8+ {[%emt 0:05:41]} Rxd8 {[%emt 0:00:08]} 18. Nd2 {[%emt 0:01:02]} Bh6 {[%emt 0:07:31]} 19. g3 {[%emt 0:03:15]} Qc5 {[%emt 0:00:53]} 20. Nxc4 {[%emt 0:02:44]} Bxc4 {[%emt 0:03:05]} 21. Bxc4 {[%emt 0:00:29]} Nxc4 {[%emt 0:01:07]} 22. Qxc4 {[%emt 0:00:55]} Qxc4+ {[%emt 0:00:28]} 23. bxc4 {[%emt 0:00:05]} Rd3 {[%emt 0:00:10]} 24. Kc2 {[%emt 0:02:22]} Rxg3 {[%emt 0:00:23]} 25. h5 {[%emt 0:03:07]} Bxf4 {[%emt 0:03:11]} 26. hxg6 {[%emt 0:00:15]} hxg6 {[%emt 0:00:11]} 27. Rh7 {[%emt 0:04:03]} Rg2+ {[%emt 0:00:06]} 28. Kb1 {[%emt 0:04:12]} Re2 {[%emt 0:01:32]} 29. Rxf7 {[%emt 0:00:25]} Bxe5 {[%emt 0:00:07]} 30. Bxe5 {[%emt 0:00:56]} Rxe5 {[%emt 0:00:05]} 31. Kb2 {[%emt 0:05:30]} Kb7 {[%emt 0:05:08]} 32. Rg7 {[%emt 0:02:07]} Rg5 {[%emt 0:02:30]} 33. Kb3 {[%emt 0:02:01]} Kb6 {[%emt 0:00:19]} 34. Ka4 {[%emt 0:02:12]} Rg4 {[%emt 0:00:13]} 35. Kb3 {[%emt 0:00:12]} Rg2 {[%emt 0:04:52]} 36. a3 {[%emt 0:00:22]} Rg4 {[%emt 0:00:07]} 37. Re7 {[%emt 0:03:25]} g5 {[%emt 0:00:37]} 38. Re5 {[%emt 0:01:16]} a4+ {[%emt 0:02:52]} 39. Kb4 {[%emt 0:01:34]} Rg3 {[%emt 0:04:42]} 40. Kxa4 {[%emt 0:00:00]} c5 {[%emt 0:00:00]} 41. Re6+ {[%emt 0:06:11]} c6 {[%emt 0:15:35]} 42. Re7 {[%emt 0:01:41]} Rc3 {[%emt 0:09:50]} 43. Re4 {[%emt 0:00:55]} Rf3 {[%emt 0:00:09]} 44. Re7 {[%emt 0:05:45]} Rf4 {[%emt 0:06:30]} 45. Kb3 {[%emt 0:00:06]} Rg4 {[%emt 0:06:09]} 46. Rg7 {[%emt 0:03:42]} Rg1 {[%emt 0:00:18]} 47. Kb2 {[%emt 0:04:51]} Rg3 {[%emt 0:00:59]} 48. Kc2 {[%emt 0:00:58]} Rg2+ {[%emt 0:01:38]} 49. Kb3 {[%emt 0:00:09]} Rg4 {[%emt 0:03:32]} 50. Kc3 {[%emt 0:00:25]} Rg2 {[%emt 0:00:45]} 51. Kb3 {[%emt 0:00:11]} Rg1 {[%emt 0:00:42]} 52. Kb2 {[%emt 0:00:33]} g4 {[%emt 0:00:05]} 53. Kb3 {[%emt 0:00:43]} g3 {[%emt 0:00:21]} 54. Kb2 {[%emt 0:02:29]} g2 {[%emt 0:01:11]} 55. Ka2 {[%emt 0:00:03]} Rc1 {[%emt 0:00:11]} 56. Rxg2 {[%emt 0:00:05]} Rxc4 {[%emt 0:00:03]} 57. Kb3 {[%emt 0:00:32]} Rh4 {[%emt 0:00:17]} 58. Rg7 {[%emt 0:06:16]} Rh3+ {[%emt 0:01:11]} 59. Ka4 {[%emt 0:01:17]} Rh1 {[%emt 0:01:05]} 60. Kb3 {[%emt 0:00:41]} Rb1+ {[%emt 0:00:15]} 61. Kc3 {[%emt 0:00:51]} Rc1+ {[%emt 0:00:34]} 62. Kb2 {[%emt 0:00:36]} Rd1 {[%emt 0:00:33]} 63. Kc2 {[%emt 0:00:15]} Rd8 {[%emt 0:01:48]} 64. Kc3 {[%emt 0:00:14]} Rb8 {[%emt 0:02:19]} 65. Kc4 {[%emt 0:00:06]} Rd8 {[%emt 0:00:51]} 66. Rg4 {[%emt 0:02:04]} Rf8 {[%emt 0:00:38]} 67. Rh4 {[%emt 0:00:23]} Rf3 {[%emt 0:00:09]} 68. Rh1 {[%emt 0:00:46]} Rf4+ {[%emt 0:01:19]} 69. Kc3 {[%emt 0:00:47]} Ra4 {[%emt 0:00:22]} 70. Rb1+ {[%emt 0:02:32]} Kc7 {[%emt 0:00:05]} 71. Kb3 {[%emt 0:00:08]} Re4 {[%emt 0:00:46]} 72. Kc3 {[%emt 0:00:35]} Kd6 {[%emt 0:01:05]} 73. Rd1+ {[%emt 0:00:05]} Ke7 {[%emt 0:00:19]} 74. Rd2 {[%emt 0:00:23]} Ra4 {[%emt 0:00:07]} 75. Rd1 {[%emt 0:01:27]} Ke6 {[%emt 0:00:27]} 76. Rd8 {[%emt 0:00:14]} Ke5 {[%emt 0:00:10]} 77. Rd7 {[%emt 0:01:13]} Rh4 {[%emt 0:02:27]} 78. Rd8 {[%emt 0:00:30]} Ke6 {[%emt 0:01:04]} 79. Rd1 {[%emt 0:00:16]} Ra4 {[%emt 0:00:32]} 80. Rd2 {[%emt 0:00:24]} Ke5 {[%emt 0:00:08]} 81. Rd8 {[%emt 0:00:14]} Rg4 {[%emt 0:00:34]} 82. Rd7 {[%emt 0:00:33]} Rd4 {[%emt 0:00:04]} 83. Rh7 {[%emt 0:00:10]} Kd6 {[%emt 0:00:24]} 84. Rh5 {[%emt 0:01:40]} Rd5 {[%emt 0:00:26]} 85. Rh6+ {[%emt 0:00:34]} Kc7 {[%emt 0:00:05]} 86. Rh1 {[%emt 0:00:08]} Rd4 {[%emt 0:00:19]} 87. Rg1 {[%emt 0:00:18]} Ra4 {[%emt 0:00:57]} 88. Kb3 {[%emt 0:00:07]} Rh4 {[%emt 0:00:26]} 89. Kc3 {[%emt 0:00:15]} Rh3+ {[%emt 0:02:04]} 90. Kc4 {[%emt 0:00:05]} Rxa3 {[%emt 0:00:04]} 91. Kxc5 {[%emt 0:00:03]} Rc3+ {[%emt 0:00:06]} 92. Kb4 {[%emt 0:00:04]} Rc2 {[%emt 0:00:09]} 93. Rg8 {[%emt 0:00:27]} Rc1 {[%emt 0:00:56]} 94. Rh8 {[%emt 0:00:04]} Rg1 {[%emt 0:01:18]} 95. Kc5 {[%emt 0:00:11]} Rg5+ {[%emt 0:00:08]} 96. Kc4 {[%emt 0:00:05]} Rd5 {[%emt 0:02:03]} 97. Rf8 {[%emt 0:01:24]} Rd1 {[%emt 0:00:54]} 98. Kc5 {[%emt 0:00:08]} Kd7 {[%emt 0:00:28]} 99. Rf6 {[%emt 0:00:35]} Rd2 {[%emt 0:00:59]} 100. Rh6 {[%emt 0:00:04]} Rc2+ {[%emt 0:00:10]} 101. Kb4 {[%emt 0:00:05]} Kc7 {[%emt 0:00:17]} 102. Rh8 {[%emt 0:00:06]} Rc1 {[%emt 0:00:12]} 103. Rg8 {[%emt 0:00:06]} c5+ {[%emt 0:00:06]} 104. Kb5 {[%emt 0:01:37]} c4 {[%emt 0:00:26]} 105. Kb4 {[%emt 0:00:20]} c3 {[%emt 0:00:25]} 106. Kb3 {[%emt 0:00:07]} Kd6 {[%emt 0:00:20]} 107. Rg5 {[%emt 0:00:05]} 1/2-1/2

[Event "European Womens-ch 2025"]
[Site "Rhodes"]
[Date "2025.03.31"]
[Round "1.29"]
[White "Savina, Anastasia"]
[Black "Sivanandan, Bodhana"]
[Result "1-0"]
[Annotator "RC"]
[ECO "D46"]
[WhiteElo "2331"]
[BlackElo "2073"]
[PlyCount "141"]
[EventDate "2025.03.29"]
[EventType "swiss"]
[EventCountry "GRE"]
[SourceTitle "playchess.com"]
[Source "ChessBase"]
[SourceQuality "1"]
[TimeControl "40/5400+30:1800+30"]

1. d4 {[%emt 0:00:08]} d5 {[%emt 0:02:42]} 2. c4 {[%emt 0:00:12]} c6 {[%emt 0:00:07]} 3. Nf3 {[%emt 0:00:05]} Nf6 {[%emt 0:00:07]} 4. Nc3 {[%emt 0:00:04]} e6 {[%emt 0:00:28]} 5. e3 {[%emt 0:00:10]} Nbd7 {[%emt 0:00:46]} 6. Qc2 {[%emt 0:00:07]} Bd6 {[%emt 0:00:50]} 7. Bd3 {[%emt 0:00:05]} O-O {[%emt 0:00:52]} 8. O-O {[%emt 0:00:13]} dxc4 {[%emt 0:00:20]} 9. Bxc4 {[%emt 0:00:04]} b5 {[%emt 0:00:47]} 10. Bd3 {[%emt 0:00:57]} Bb7 {[%emt 0:00:45]} 11. e4 {[%emt 0:00:53]} e5 {[%emt 0:00:34]} 12. Bg5 {[%emt 0:00:07]} h6 {[%emt 0:01:41]} 13. Bh4 {[%emt 0:00:26]} Re8 {[%emt 0:01:30]} 14. Rad1 {[%emt 0:10:21]} Qe7 {[%emt 0:03:57]} 15. Kh1 {[%emt 0:24:00]} Rad8 {[%emt 0:15:42]} 16. dxe5 {[%emt 0:08:28]} Bxe5 {[%emt 0:01:20]} 17. Nxe5 {[%emt 0:03:59]} Nxe5 {[%emt 0:00:12]} 18. f4 {[%emt 0:18:27]} Nxd3 {[%emt 0:13:14]} 19. Rxd3 {[%emt 0:06:13]} Rxd3 {[%emt 0:00:15]} 20. Qxd3 {[%emt 0:00:03]} b4 {[%emt 0:03:43]} 21. Bxf6 {[%emt 0:14:26]} gxf6 {[%emt 0:04:47]} 22. Na4 {[%emt 0:03:09]} Qxe4 {[%emt 0:05:56]} 23. Qxe4 {[%emt 0:01:18]} Rxe4 {[%emt 0:00:13]} 24. Nc5 {[%emt 0:00:02]} Re7 {[%emt 0:00:36]} 25. f5 {[%emt 0:03:33]} Bc8 {[%emt 0:00:43]} 26. g4 {[%emt 0:00:05]} Re5 {[%emt 0:00:34]} 27. Rc1 {[%emt 0:01:30]} Rd5 {[%emt 0:01:49]} 28. Kg2 {[%emt 0:04:26]} Kg7 {[%emt 0:01:37]} 29. Rc2 {[%emt 0:00:48]} h5 {[%emt 0:03:13]} 30. h3 {[%emt 0:00:02]} hxg4 {[%emt 0:01:29]} 31. hxg4 {[%emt 0:00:01]} a5 {[%emt 0:03:42]} 32. Kf3 {[%emt 0:00:29]} Bd7 {[%emt 0:02:13]} 33. Ke4 {[%emt 0:01:36]} Bc8 {[%emt 0:00:35]} 34. a3 {[%emt 0:00:29]} bxa3 {[%emt 0:00:18]} 35. bxa3 {[%emt 0:00:01]} Kf8 {[%emt 0:16:07]} 36. Kf4 {[%emt 0:00:14]} Rd4+ {[%emt 0:01:13]} 37. Kf3 {[%emt 0:01:14]} Rd5 {[%emt 0:04:33]} 38. Kf4 {[%emt 0:00:27]} Rd4+ {[%emt 0:00:27]} 39. Kf3 {[%emt 0:00:04]} Rd5 {[%emt 0:00:08]} 40. Rc3 {[%emt 0:00:00]} Bd7 {[%emt 0:00:00]} 41. Nxd7+ {[%emt 0:20:51]} Rxd7 {[%emt 0:03:48]} 42. Rxc6 {[%emt 0:00:05]} Kg7 {[%emt 0:00:18]} 43. Ke4 {[%emt 0:00:40]} Rd1 {[%emt 0:02:20]} 44. Rc5 {[%emt 0:03:34]} Kh6 {[%emt 0:01:46]} 45. Rxa5 {[%emt 0:01:29]} Kg5 {[%emt 0:00:19]} 46. a4 {[%emt 0:01:45]} Kxg4 {[%emt 0:00:08]} 47. Rc5 {[%emt 0:05:02]} Ra1 {[%emt 0:07:39]} 48. a5 {[%emt 0:00:27]} Ra4+ {[%emt 0:00:09]} 49. Kd3 {[%emt 0:00:45]} Kf3 {[%emt 0:00:12]} 50. Kc3 {[%emt 0:00:26]} Ke3 {[%emt 0:00:08]} 51. Kb3 {[%emt 0:00:15]} Ra1 {[%emt 0:00:11]} 52. Kc4 {[%emt 0:01:25]} Ke4 {[%emt 0:01:45]} 53. Kb5 {[%emt 0:00:14]} Kd4 {[%emt 0:00:10]} 54. Kb6 {[%emt 0:00:24]} Rb1+ {[%emt 0:01:13]} 55. Rb5 {[%emt 0:00:20]} Rc1 {[%emt 0:00:52]} 56. a6 {[%emt 0:00:13]} Rc8 {[%emt 0:00:36]} 57. a7 {[%emt 0:00:18]} Re8 {[%emt 0:01:48]} 58. Ra5 {[%emt 0:00:29]} Ke4 {[%emt 0:00:11]} 59. Rc5 {[%emt 0:01:39]} Kd4 {[%emt 0:00:45]} 60. Rb5 {[%emt 0:00:40]} Kc4 {[%emt 0:02:00]} 61. Ra5 {[%emt 0:00:17]} Kd4 {[%emt 0:01:44]} 62. a8=Q {[%emt 0:00:13]} Rxa8 {[%emt 0:00:10]} 63. Rxa8 {[%emt 0:00:04]} Ke4 {[%emt 0:00:19]} 64. Ra5 {[%emt 0:00:05]} Kf4 {[%emt 0:00:11]} 65. Kc6 {[%emt 0:00:05]} Kg5 {[%emt 0:00:09]} 66. Kd6 {[%emt 0:00:06]} Kh6 {[%emt 0:00:07]} 67. Ke7 {[%emt 0:00:05]} Kg7 {[%emt 0:00:07]} 68. Ra1 {[%emt 0:00:17]} Kh7 {[%emt 0:00:17]} 69. Kxf6 {[%emt 0:00:05]} Kh8 {[%emt 0:00:09]} 70. Kxf7 {[%emt 0:00:06]} Kh7 {[%emt 0:00:07]} 71. Rh1# {[%emt 0:00:03]} 1-0